Body Name,Body,Service Division,Expense Type,Date Paid,Transaction Ref,Invoice Amount,Supplier Name
Boston Borough Council,http://statistics.data.gov.uk/id/local-authority/32UB,Finance,Other Miscellaneous Expenses,04/03/2024,30011327,"11,156.61 ",Lloyds Bank Commerical Finance LTD (P Card)
Boston Borough Council,http://statistics.data.gov.uk/id/local-authority/32UB,Finance,Postages,04/03/2024,30011171,620.86 ,imail
Boston Borough Council,http://statistics.data.gov.uk/id/local-authority/32UB,Operations,Fuel and Oil,04/03/2024,30011076,303.71 ,Fuelcard Services Ltd
Boston Borough Council,http://statistics.data.gov.uk/id/local-authority/32UB,Operations,Fuel and Oil,04/03/2024,30011080,"5,658.89 ",Fuelcard Services Ltd
Boston Borough Council,http://statistics.data.gov.uk/id/local-authority/32UB,Communities,Grants and Contributions to Outside Bodies - No Service Received,05/03/2024,30010807,"9,000.00 ",Lincolnshire Community Foundation
Boston Borough Council,http://statistics.data.gov.uk/id/local-authority/32UB,Economic Development,Professional Fees,05/03/2024,30010762,"20,141.42 ",Heritage Trust of Lincolnshire LTD
Boston Borough Council,http://statistics.data.gov.uk/id/local-authority/32UB,Property Services,Buildings Maintenance - Programmed,05/03/2024,30010742,505.42 ,Princebuild LTD
Boston Borough Council,http://statistics.data.gov.uk/id/local-authority/32UB,Property Services,Buildings Maintenance - Programmed,05/03/2024,30010744,269.50 ,Princebuild LTD
Boston Borough Council,http://statistics.data.gov.uk/id/local-authority/32UB,Strategic Growth & Development,Grants and Contributions to Outside Bodies - No Service Received,05/03/2024,30010806,"4,749.66 ",Pilgrim Blinds (Trade) Ltd
Boston Borough Council,http://statistics.data.gov.uk/id/local-authority/32UB,Information Technology,Telephone and Mobiles,06/03/2024,30011072,656.91 ,British Telecommunications Plc
Boston Borough Council,http://statistics.data.gov.uk/id/local-authority/32UB,Communities,Grants and Contributions to Outside Bodies - No Service Received,07/03/2024,30010875,"10,625.11 ",Westone Housing Ltd
Boston Borough Council,http://statistics.data.gov.uk/id/local-authority/32UB,Council Tax & Benefits,Computer Software Licence Costs,07/03/2024,30010967,"2,127.20 ",XL Print Software
Boston Borough Council,http://statistics.data.gov.uk/id/local-authority/32UB,Credit Control,Computer Software Licence Costs,07/03/2024,30010967,218.80 ,XL Print Software
Boston Borough Council,http://statistics.data.gov.uk/id/local-authority/32UB,"Democratic, Civic & Electoral Services",Postages,07/03/2024,30010617,460.42 ,Twofold Mailing LTD
Boston Borough Council,http://statistics.data.gov.uk/id/local-authority/32UB,Economic Development,Professional and Contractors Fees,07/03/2024,30010916,"9,841.69 ",Mr S M Lee (H Launchburys & Son)
Boston Borough Council,http://statistics.data.gov.uk/id/local-authority/32UB,Finance,Shared Management,07/03/2024,30010911,"84,942.17 ",South Holland District Council
Boston Borough Council,http://statistics.data.gov.uk/id/local-authority/32UB,Information Technology,Computer Software Licence Costs,07/03/2024,30010815,"17,355.66 ",East Lindsey District Council
Boston Borough Council,http://statistics.data.gov.uk/id/local-authority/32UB,Legal Services,Legal Fees,07/03/2024,30010757,"4,183.48 ",Lincolnshire County Council
Boston Borough Council,http://statistics.data.gov.uk/id/local-authority/32UB,Operations,Agency Staff,07/03/2024,30010758,"8,215.40 ",Comensura LTD
Boston Borough Council,http://statistics.data.gov.uk/id/local-authority/32UB,Operations,Other Private Contractors,07/03/2024,30010780,240.00 ,SG Services (Boston) LTD
Boston Borough Council,http://statistics.data.gov.uk/id/local-authority/32UB,Property Services,Buildings Maintenance - Programmed,07/03/2024,30010722,289.28 ,Periam and Williamson Ltd
Boston Borough Council,http://statistics.data.gov.uk/id/local-authority/32UB,Strategic Growth & Development,Grants and Contributions to Outside Bodies - No Service Received,07/03/2024,30010878,"80,050.00 ",Lincolnshire Community Foundation
Boston Borough Council,http://statistics.data.gov.uk/id/local-authority/32UB,Bereavement,Gas,08/03/2024,30011181,"1,976.70 ",Espo Gas and Electricity
Boston Borough Council,http://statistics.data.gov.uk/id/local-authority/32UB,Bereavement,Gas,08/03/2024,30011182,"6,211.09 ",Espo Gas and Electricity
Boston Borough Council,http://statistics.data.gov.uk/id/local-authority/32UB,Communities,Gas,08/03/2024,30011179,614.68 ,Espo Gas and Electricity
Boston Borough Council,http://statistics.data.gov.uk/id/local-authority/32UB,Communities,Gas,08/03/2024,30011180,556.51 ,Espo Gas and Electricity
Boston Borough Council,http://statistics.data.gov.uk/id/local-authority/32UB,Heritage,Gas,08/03/2024,30011183,"3,680.01 ",Espo Gas and Electricity
Boston Borough Council,http://statistics.data.gov.uk/id/local-authority/32UB,Property Services,Gas,08/03/2024,30011184,"4,379.47 ",Espo Gas and Electricity
Boston Borough Council,http://statistics.data.gov.uk/id/local-authority/32UB,Finance,Postages,11/03/2024,30011178,446.11 ,imail
Boston Borough Council,http://statistics.data.gov.uk/id/local-authority/32UB,Operations,Fuel and Oil,11/03/2024,30011173,"4,494.34 ",Fuelcard Services Ltd
Boston Borough Council,http://statistics.data.gov.uk/id/local-authority/32UB,Operations,Fuel and Oil,11/03/2024,30011174,212.14 ,Fuelcard Services Ltd
Boston Borough Council,http://statistics.data.gov.uk/id/local-authority/32UB,Operations,Fuel and Oil,11/03/2024,30011175,983.69 ,Fuelcard Services Ltd
Boston Borough Council,http://statistics.data.gov.uk/id/local-authority/32UB,Bereavement,Professional and Contractors Fees,12/03/2024,30010877,832.50 ,�Personal Information Redacted�
Boston Borough Council,http://statistics.data.gov.uk/id/local-authority/32UB,Communities,Bed and Breakfast Accommodation (Homelessness Service),12/03/2024,30010979,900.00 ,Fairfield Guest House
Boston Borough Council,http://statistics.data.gov.uk/id/local-authority/32UB,Communities,Grants and Contributions to Outside Bodies - No Service Received,12/03/2024,30011007,500.00 ,Old Leak Community Hub
Boston Borough Council,http://statistics.data.gov.uk/id/local-authority/32UB,Communities,Staff Training Expenses (Non-Payroll),12/03/2024,30011047,"1,950.00 ",Derby City Council
Boston Borough Council,http://statistics.data.gov.uk/id/local-authority/32UB,Land Charges & Licencing,Licence Fees,12/03/2024,30011009,380.00 ,Barkers Kennel and Cattery
Boston Borough Council,http://statistics.data.gov.uk/id/local-authority/32UB,Operations,Other Miscellaneous Expenses,12/03/2024,30010753,"11,018.00 ",A and C Weber UK LTD
Boston Borough Council,http://statistics.data.gov.uk/id/local-authority/32UB,Operations,Other Private Contractors,12/03/2024,30010987,575.00 ,Healthguard LTD
Boston Borough Council,http://statistics.data.gov.uk/id/local-authority/32UB,Property Services,Buildings Maintenance - Programmed,12/03/2024,30010844,335.55 ,Glen Farrow UK LTD
Boston Borough Council,http://statistics.data.gov.uk/id/local-authority/32UB,Property Services,Buildings Maintenance - Programmed,12/03/2024,30010856,262.00 ,Nerg
Boston Borough Council,http://statistics.data.gov.uk/id/local-authority/32UB,Property Services,Buildings Maintenance - Programmed,12/03/2024,30010866,"4,004.00 ",Eon UK Energy Services
Boston Borough Council,http://statistics.data.gov.uk/id/local-authority/32UB,Property Services,Gas,12/03/2024,30010712,"1,730.00 ",SDL Biomass LTD
Boston Borough Council,http://statistics.data.gov.uk/id/local-authority/32UB,Property Services,Gas,12/03/2024,30010760,"2,505.00 ",SDL Biomass LTD
Boston Borough Council,http://statistics.data.gov.uk/id/local-authority/32UB,Strategic Economic Development Projects,Professional and Contractors Fees,12/03/2024,30010984,"2,610.00 ",Park Avenue Recruitment
Boston Borough Council,http://statistics.data.gov.uk/id/local-authority/32UB,Bereavement,Purchase Of Goods For Resale,14/03/2024,30010983,517.00 ,William Kent (Memorials) LTD
Boston Borough Council,http://statistics.data.gov.uk/id/local-authority/32UB,Communities,Bed and Breakfast Accommodation (Homelessness Service),14/03/2024,30011051,"1,300.00 ",�Personal Information Redacted�
Boston Borough Council,http://statistics.data.gov.uk/id/local-authority/32UB,Communities,Bed and Breakfast Accommodation (Homelessness Service),14/03/2024,30011054,"10,790.00 ",The Lord Grey Hotel t/a The Lord Grey Ltd
Boston Borough Council,http://statistics.data.gov.uk/id/local-authority/32UB,Communities,Bed and Breakfast Accommodation (Homelessness Service),14/03/2024,30011055,"1,045.00 ",The Lord Grey Hotel t/a The Lord Grey Ltd
Boston Borough Council,http://statistics.data.gov.uk/id/local-authority/32UB,Communities,Bed and Breakfast Accommodation (Homelessness Service),14/03/2024,30011057,880.00 ,The Lord Grey Hotel t/a The Lord Grey Ltd
Boston Borough Council,http://statistics.data.gov.uk/id/local-authority/32UB,Communities,Bed and Breakfast Accommodation (Homelessness Service),14/03/2024,30011058,880.00 ,The Lord Grey Hotel t/a The Lord Grey Ltd
Boston Borough Council,http://statistics.data.gov.uk/id/local-authority/32UB,Communities,Bed and Breakfast Accommodation (Homelessness Service),14/03/2024,30011059,625.00 ,The Lord Grey Hotel t/a The Lord Grey Ltd
Boston Borough Council,http://statistics.data.gov.uk/id/local-authority/32UB,Communities,Bed and Breakfast Accommodation (Homelessness Service),14/03/2024,30011060,"2,645.00 ",The Lord Grey Hotel t/a The Lord Grey Ltd
Boston Borough Council,http://statistics.data.gov.uk/id/local-authority/32UB,Communities,Bed and Breakfast Accommodation (Homelessness Service),14/03/2024,30011065,"1,103.00 ",The Lord Grey Hotel t/a The Lord Grey Ltd
Boston Borough Council,http://statistics.data.gov.uk/id/local-authority/32UB,Communities,Bed and Breakfast Accommodation (Homelessness Service),14/03/2024,30011106,360.00 ,AA Properties Boston LTD T/A Tunnard House
Boston Borough Council,http://statistics.data.gov.uk/id/local-authority/32UB,Communities,Bed and Breakfast Accommodation (Homelessness Service),14/03/2024,30011107,360.00 ,AA Properties Boston LTD T/A Tunnard House
Boston Borough Council,http://statistics.data.gov.uk/id/local-authority/32UB,Communities,Grants and Contributions to Outside Bodies - No Service Received,14/03/2024,30011070,"5,000.00 ",New Life Community Church Boston
Boston Borough Council,http://statistics.data.gov.uk/id/local-authority/32UB,Communities,Grants and Contributions to Outside Bodies - No Service Received,14/03/2024,30011089,500.00 ,Fishtoft400
Boston Borough Council,http://statistics.data.gov.uk/id/local-authority/32UB,Communities,Grants and Contributions to Outside Bodies - No Service Received,14/03/2024,30011114,"5,000.00 ",Centenary Methodist Church
Boston Borough Council,http://statistics.data.gov.uk/id/local-authority/32UB,Corporate,Purchase of Hardware,14/03/2024,30010990,"15,991.50 ",Public Sector Partnership Services LTD
Boston Borough Council,http://statistics.data.gov.uk/id/local-authority/32UB,Council Tax & Benefits,Other Revenue Grants Reimbursements and Contributions (Government),14/03/2024,30011034,"6,468.00 ",Department for levelling Up Housing & Communities
Boston Borough Council,http://statistics.data.gov.uk/id/local-authority/32UB,Finance,Council Tax Rebate Grant (Agent) Expenditure,14/03/2024,30011034,"104,700.00 ",Department for levelling Up Housing & Communities
Boston Borough Council,http://statistics.data.gov.uk/id/local-authority/32UB,Finance,Subscriptions to Organisations and Other Bodies,14/03/2024,30011052,"6,630.00 ",LG Futures
Boston Borough Council,http://statistics.data.gov.uk/id/local-authority/32UB,Information Technology,Computer Software Licence Costs,14/03/2024,30011000,"12,478.00 ",Public Sector Partnership Services LTD
Boston Borough Council,http://statistics.data.gov.uk/id/local-authority/32UB,Information Technology,Computer Software Licence Costs,14/03/2024,30011001,"1,652.60 ",Public Sector Partnership Services LTD
Boston Borough Council,http://statistics.data.gov.uk/id/local-authority/32UB,Information Technology,Computer Software Licence Costs,14/03/2024,30011002,"5,472.80 ",South Holland District Council
Boston Borough Council,http://statistics.data.gov.uk/id/local-authority/32UB,Information Technology,Materials and Consumables,14/03/2024,30011003,271.90 ,Public Sector Partnership Services LTD
Boston Borough Council,http://statistics.data.gov.uk/id/local-authority/32UB,Information Technology,Purchase of Hardware,14/03/2024,30010990,"15,991.50 ",Public Sector Partnership Services LTD
Boston Borough Council,http://statistics.data.gov.uk/id/local-authority/32UB,Information Technology,Telephone and Mobiles,14/03/2024,30009999,"1,730.56 ",Vodafone
Boston Borough Council,http://statistics.data.gov.uk/id/local-authority/32UB,Information Technology,Telephone and Mobiles,14/03/2024,30010991,"3,783.53 ",Public Sector Partnership Services LTD
Boston Borough Council,http://statistics.data.gov.uk/id/local-authority/32UB,Operations,Agency Staff,14/03/2024,30010989,"10,012.39 ",Comensura LTD
Boston Borough Council,http://statistics.data.gov.uk/id/local-authority/32UB,Operations,Other Private Contractors,14/03/2024,30009708,220.00 ,SG Services (Boston) LTD
Boston Borough Council,http://statistics.data.gov.uk/id/local-authority/32UB,Operations,Other Private Contractors,14/03/2024,30010966,"5,150.00 ",Hydroshine Cleaning Services
Boston Borough Council,http://statistics.data.gov.uk/id/local-authority/32UB,Operations,Other Private Contractors,14/03/2024,30011075,"3,780.00 ",LA Support LTD
Boston Borough Council,http://statistics.data.gov.uk/id/local-authority/32UB,Operations,Other Private Contractors,14/03/2024,30011078,"7,923.00 ",LA Support LTD
Boston Borough Council,http://statistics.data.gov.uk/id/local-authority/32UB,Operations,Other Private Contractors,14/03/2024,30011079,"5,685.75 ",LA Support LTD
Boston Borough Council,http://statistics.data.gov.uk/id/local-authority/32UB,Operations,Tyres,14/03/2024,30010964,"2,856.07 ",BA Bush and Son LTD
Boston Borough Council,http://statistics.data.gov.uk/id/local-authority/32UB,Property Services,Buildings Maintenance - Programmed,14/03/2024,30010945,"2,929.60 ",Princebuild LTD
Boston Borough Council,http://statistics.data.gov.uk/id/local-authority/32UB,Property Services,Buildings Maintenance - Programmed,14/03/2024,30010946,"1,945.01 ",Princebuild LTD
Boston Borough Council,http://statistics.data.gov.uk/id/local-authority/32UB,Property Services,Buildings Maintenance - Programmed,14/03/2024,30010947,"1,524.80 ",Princebuild LTD
Boston Borough Council,http://statistics.data.gov.uk/id/local-authority/32UB,Property Services,Buildings Maintenance - Programmed,14/03/2024,30010948,"3,590.50 ",Princebuild LTD
Boston Borough Council,http://statistics.data.gov.uk/id/local-authority/32UB,Property Services,Buildings Maintenance - Programmed,14/03/2024,30011017,"1,575.00 ",Vere Bros
Boston Borough Council,http://statistics.data.gov.uk/id/local-authority/32UB,Property Services,Buildings Maintenance - Programmed,14/03/2024,30011043,502.41 ,Gelder Construction
Boston Borough Council,http://statistics.data.gov.uk/id/local-authority/32UB,Strategic Economic Development Projects,Professional and Contractors Fees,14/03/2024,30011056,"2,000.00 ",University of Lincoln
Boston Borough Council,http://statistics.data.gov.uk/id/local-authority/32UB,Strategic Economic Development Projects,Professional and Contractors Fees,14/03/2024,30011102,"2,349.00 ",Park Avenue Recruitment
Boston Borough Council,http://statistics.data.gov.uk/id/local-authority/32UB,Finance,Postages,18/03/2024,30011323,372.76 ,imail
Boston Borough Council,http://statistics.data.gov.uk/id/local-authority/32UB,Land Charges & Licencing,Professional and Contractors Fees,18/03/2024,30011315,836.00 ,Disclosure and Barring Service
Boston Borough Council,http://statistics.data.gov.uk/id/local-authority/32UB,Operations,Fuel and Oil,18/03/2024,30011330,"5,798.97 ",Fuelcard Services Ltd
Boston Borough Council,http://statistics.data.gov.uk/id/local-authority/32UB,Operations,Water and Sewerage Charges,18/03/2024,30011319,732.31 ,Wave
Boston Borough Council,http://statistics.data.gov.uk/id/local-authority/32UB,Communities,Bed and Breakfast Accommodation (Homelessness Service),19/03/2024,30011064,630.00 ,Fairfield Guest House
Boston Borough Council,http://statistics.data.gov.uk/id/local-authority/32UB,Communities,Bed and Breakfast Accommodation (Homelessness Service),19/03/2024,30011109,360.00 ,AA Properties Boston LTD T/A Tunnard House
Boston Borough Council,http://statistics.data.gov.uk/id/local-authority/32UB,Communities,Grants and Contributions to Outside Bodies - No Service Received,19/03/2024,30011010,500.00 ,Centrepoint Outreach
Boston Borough Council,http://statistics.data.gov.uk/id/local-authority/32UB,Communities,Grants and Contributions to Outside Bodies - No Service Received,19/03/2024,30011036,"6,344.62 ",R A Joinery
Boston Borough Council,http://statistics.data.gov.uk/id/local-authority/32UB,Communities,Grants and Contributions to Outside Bodies - No Service Received,19/03/2024,30011130,"7,523.78 ",Ron Gale And Sons LTD
Boston Borough Council,http://statistics.data.gov.uk/id/local-authority/32UB,Communities,Grants and Contributions to Outside Bodies - No Service Received,19/03/2024,30011137,"5,000.00 ",Central Bank St Botolphs Church
Boston Borough Council,http://statistics.data.gov.uk/id/local-authority/32UB,Communities,Grants and Contributions to Outside Bodies - No Service Received,19/03/2024,30011154,"10,000.00 ",Charis Grants LTD
Boston Borough Council,http://statistics.data.gov.uk/id/local-authority/32UB,Communities,Grants and Contributions to Outside Bodies - No Service Received,19/03/2024,30011210,"8,335.96 ",Ron Gale And Sons LTD
Boston Borough Council,http://statistics.data.gov.uk/id/local-authority/32UB,Communities,Other Communication Costs,19/03/2024,30010736,"4,320.00 ",Videcom Security LTD
Boston Borough Council,http://statistics.data.gov.uk/id/local-authority/32UB,Communities,Other Miscellaneous Expenses,19/03/2024,30011068,637.97 ,Boston Borough Council
Boston Borough Council,http://statistics.data.gov.uk/id/local-authority/32UB,Communities,Other Miscellaneous Expenses,19/03/2024,30011069,767.71 ,Boston Borough Council
Boston Borough Council,http://statistics.data.gov.uk/id/local-authority/32UB,Council Tax & Benefits,Business Rates - Contribution to Surplus/Deficit,19/03/2024,30011312,"-73,873.00 ",Department for levelling Up Housing & Communities
Boston Borough Council,http://statistics.data.gov.uk/id/local-authority/32UB,Council Tax & Benefits,Business Rates - Share of Income Central Government,19/03/2024,30011312,"765,793.00 ",Department for levelling Up Housing & Communities
Boston Borough Council,http://statistics.data.gov.uk/id/local-authority/32UB,Council Tax & Benefits,Business Rates - Transitional Protection Payments,19/03/2024,30011312,"-104,521.00 ",Department for levelling Up Housing & Communities
Boston Borough Council,http://statistics.data.gov.uk/id/local-authority/32UB,Council Tax & Benefits,PSPS Non-Base Contract Costs,19/03/2024,30011136,"10,390.00 ",Public Sector Partnership Services LTD
Boston Borough Council,http://statistics.data.gov.uk/id/local-authority/32UB,"Democratic, Civic & Electoral Services",Agency Staff,19/03/2024,30011140,"2,040.00 ",�Personal Information Redacted�
Boston Borough Council,http://statistics.data.gov.uk/id/local-authority/32UB,Finance,Business Rates - Contribution to Surplus/Deficit,19/03/2024,30011312,"-73,873.00 ",Department for levelling Up Housing & Communities
Boston Borough Council,http://statistics.data.gov.uk/id/local-authority/32UB,Finance,Business Rates - Share of Income Central Government,19/03/2024,30011312,"765,793.00 ",Department for levelling Up Housing & Communities
Boston Borough Council,http://statistics.data.gov.uk/id/local-authority/32UB,Finance,Business Rates - Transitional Protection Payments,19/03/2024,30011312,"-104,521.00 ",Department for levelling Up Housing & Communities
Boston Borough Council,http://statistics.data.gov.uk/id/local-authority/32UB,Finance,Professional and Contractors Fees,19/03/2024,30011105,"33,600.00 ",Lincolnshire County Council
Boston Borough Council,http://statistics.data.gov.uk/id/local-authority/32UB,Grant Payments,Business Rates Tariff,19/03/2024,30011313,"419,746.00 ",Lincolnshire County Council
Boston Borough Council,http://statistics.data.gov.uk/id/local-authority/32UB,Grant Payments,Non-Ringfenced Government Grants - RSG,19/03/2024,30011312,"-34,604.00 ",Department for levelling Up Housing & Communities
Boston Borough Council,http://statistics.data.gov.uk/id/local-authority/32UB,Operations,Materials and Consumables,19/03/2024,30010739,532.70 ,ESPO
Boston Borough Council,http://statistics.data.gov.uk/id/local-authority/32UB,Operations,Other Miscellaneous Expenses,19/03/2024,30011025,280.00 ,SG Services (Boston) LTD
Boston Borough Council,http://statistics.data.gov.uk/id/local-authority/32UB,Operations,Other Miscellaneous Expenses,19/03/2024,30011026,680.00 ,SG Services (Boston) LTD
Boston Borough Council,http://statistics.data.gov.uk/id/local-authority/32UB,Operations,Other Private Contractors,19/03/2024,30011029,300.00 ,SG Services (Boston) LTD
Boston Borough Council,http://statistics.data.gov.uk/id/local-authority/32UB,Planning,Professional and Contractors Fees,19/03/2024,30011090,"4,166.67 ",South Holland District Council
Boston Borough Council,http://statistics.data.gov.uk/id/local-authority/32UB,Property Services,Buildings Maintenance - Programmed,19/03/2024,30011023,"1,850.00 ",SG Services (Boston) LTD
Boston Borough Council,http://statistics.data.gov.uk/id/local-authority/32UB,Property Services,Materials and Consumables,19/03/2024,30010739,532.70 ,ESPO
Boston Borough Council,http://statistics.data.gov.uk/id/local-authority/32UB,Strategic Growth & Development,Grants and Contributions to Outside Bodies - No Service Received,19/03/2024,30011118,"1,000.00 ",Lincolnshire Community Foundation
Boston Borough Council,http://statistics.data.gov.uk/id/local-authority/32UB,Strategic Growth & Development,Grants and Contributions to Outside Bodies - No Service Received,19/03/2024,30011147,"17,359.86 ",NBV Enterprise Solutions Limited
Boston Borough Council,http://statistics.data.gov.uk/id/local-authority/32UB,Finance,Banking Charges,20/03/2024,30011316,772.33 ,Bottomline
Boston Borough Council,http://statistics.data.gov.uk/id/local-authority/32UB,Business Transformation,Postages,21/03/2024,30011067,353.92 ,Royal Mail
Boston Borough Council,http://statistics.data.gov.uk/id/local-authority/32UB,Communities,Course Fees,21/03/2024,30011011,750.00 ,Derby City Council
Boston Borough Council,http://statistics.data.gov.uk/id/local-authority/32UB,Communities,Furniture and Equipment,21/03/2024,30010737,738.60 ,Videcom Security LTD
Boston Borough Council,http://statistics.data.gov.uk/id/local-authority/32UB,Communities,Professional and Contractors Fees,21/03/2024,30011115,500.00 ,Aurora Training And Security Solutions
Boston Borough Council,http://statistics.data.gov.uk/id/local-authority/32UB,Communities,Staff Training Expenses (Non-Payroll),21/03/2024,30010735,825.00 ,Mallard Consultancy LTD
Boston Borough Council,http://statistics.data.gov.uk/id/local-authority/32UB,Economic Development,Professional and Contractors Fees,21/03/2024,30011116,"2,900.00 ",The Boston Sign Company
Boston Borough Council,http://statistics.data.gov.uk/id/local-authority/32UB,Environmental Health,Other Private Contractors,21/03/2024,30011230,820.08 ,UK Health Security Agency
Boston Borough Council,http://statistics.data.gov.uk/id/local-authority/32UB,Finance,Electricity,21/03/2024,30011314,"54,921.56 ",TotalEnergies
Boston Borough Council,http://statistics.data.gov.uk/id/local-authority/32UB,Heritage,Subscriptions to Organisations and Other Bodies,21/03/2024,30011145,229.00 ,Chilli Media and Publishing LTD
Boston Borough Council,http://statistics.data.gov.uk/id/local-authority/32UB,Land Charges & Licencing,Professional and Contractors Fees,21/03/2024,30011111,"2,051.65 ",Lincolnshire County Council
Boston Borough Council,http://statistics.data.gov.uk/id/local-authority/32UB,Operations,Agency Staff,21/03/2024,30011112,"8,344.89 ",Comensura LTD
Boston Borough Council,http://statistics.data.gov.uk/id/local-authority/32UB,Operations,Other local authorities,21/03/2024,30010950,"38,316.63 ",Lincolnshire County Council
Boston Borough Council,http://statistics.data.gov.uk/id/local-authority/32UB,Operations,Other Private Contractors,21/03/2024,30011149,"7,450.00 ",Enfortis Limited
Boston Borough Council,http://statistics.data.gov.uk/id/local-authority/32UB,Operations,PSPS Non-Base Contract Costs,21/03/2024,30011093,"17,101.17 ",Public Sector Partnership Services LTD
Boston Borough Council,http://statistics.data.gov.uk/id/local-authority/32UB,Property Services,Buildings Maintenance - Programmed,21/03/2024,30011016,427.20 ,Periam and Williamson Ltd
Boston Borough Council,http://statistics.data.gov.uk/id/local-authority/32UB,Property Services,Buildings Maintenance - Programmed,21/03/2024,30011204,350.00 ,Eon UK Energy Services
Boston Borough Council,http://statistics.data.gov.uk/id/local-authority/32UB,Property Services,Buildings Maintenance - Programmed,21/03/2024,30011205,"1,650.00 ",Eon UK Energy Services
Boston Borough Council,http://statistics.data.gov.uk/id/local-authority/32UB,Property Services,Buildings Maintenance - Programmed,21/03/2024,30011206,350.00 ,Eon UK Energy Services
Boston Borough Council,http://statistics.data.gov.uk/id/local-authority/32UB,Property Services,Buildings Maintenance - Programmed,21/03/2024,30011207,350.00 ,Eon UK Energy Services
Boston Borough Council,http://statistics.data.gov.uk/id/local-authority/32UB,Property Services,Buildings Maintenance - Programmed,21/03/2024,30011208,"1,050.00 ",Eon UK Energy Services
Boston Borough Council,http://statistics.data.gov.uk/id/local-authority/32UB,Strategic Growth & Development,Professional Fees,21/03/2024,30010951,"2,425.00 ",Focus Consultants 2010 LLP
Boston Borough Council,http://statistics.data.gov.uk/id/local-authority/32UB,Finance,Postages,25/03/2024,30011446,556.71 ,imail
Boston Borough Council,http://statistics.data.gov.uk/id/local-authority/32UB,Operations,Fuel and Oil,25/03/2024,30011441,504.61 ,Fuelcard Services Ltd
Boston Borough Council,http://statistics.data.gov.uk/id/local-authority/32UB,Operations,Fuel and Oil,25/03/2024,30011442,"5,865.46 ",Fuelcard Services Ltd
Boston Borough Council,http://statistics.data.gov.uk/id/local-authority/32UB,Bereavement,Purchase Of Goods For Resale,26/03/2024,30010814,217.00 ,The Yaboo Co LTD (Wesley Media)
Boston Borough Council,http://statistics.data.gov.uk/id/local-authority/32UB,Bereavement,Water and Sewerage Charges,26/03/2024,30011212,397.96 ,Wave
Boston Borough Council,http://statistics.data.gov.uk/id/local-authority/32UB,Communities,Bed and Breakfast Accommodation (Homelessness Service),26/03/2024,30011169,810.00 ,Fairfield Guest House
Boston Borough Council,http://statistics.data.gov.uk/id/local-authority/32UB,Communities,Computer Software Licence Costs,26/03/2024,30011234,"7,498.00 ",East Lindsey District Council
Boston Borough Council,http://statistics.data.gov.uk/id/local-authority/32UB,Communities,Grants and Contributions to Outside Bodies - No Service Received,26/03/2024,30011248,"5,678.81 ",R A Joinery
Boston Borough Council,http://statistics.data.gov.uk/id/local-authority/32UB,Communities,Other Miscellaneous Expenses,26/03/2024,30010912,684.60 ,thebigword
Boston Borough Council,http://statistics.data.gov.uk/id/local-authority/32UB,Communities,Other Miscellaneous Expenses,26/03/2024,30011338,487.88 ,Restore Church Boston
Boston Borough Council,http://statistics.data.gov.uk/id/local-authority/32UB,Communities,Rent Payments,26/03/2024,30011333,"1,549.21 ",Lincolnshire Housing Partnership
Boston Borough Council,http://statistics.data.gov.uk/id/local-authority/32UB,Communities,Rent Payments,26/03/2024,30011334,"1,625.14 ",Lincolnshire Housing Partnership
Boston Borough Council,http://statistics.data.gov.uk/id/local-authority/32UB,Communities,Rent Payments,26/03/2024,30011335,"1,635.57 ",Lincolnshire Housing Partnership
Boston Borough Council,http://statistics.data.gov.uk/id/local-authority/32UB,Corporate,Purchase of Hardware,26/03/2024,30010859,"14,244.30 ",Dell Incorporated
Boston Borough Council,http://statistics.data.gov.uk/id/local-authority/32UB,"Democratic, Civic & Electoral Services",Professional and Contractors Fees,26/03/2024,30010936,329.00 ,Chase Services Group
Boston Borough Council,http://statistics.data.gov.uk/id/local-authority/32UB,Economic Development,Professional and Contractors Fees,26/03/2024,30010818,"2,892.00 ",Amion Consulting
Boston Borough Council,http://statistics.data.gov.uk/id/local-authority/32UB,Economic Development,Professional and Contractors Fees,26/03/2024,30010860,"9,875.00 ",Community Ventures
Boston Borough Council,http://statistics.data.gov.uk/id/local-authority/32UB,Finance,Banking Charges,26/03/2024,30011443,"4,757.92 ",Pay360 LTD
Boston Borough Council,http://statistics.data.gov.uk/id/local-authority/32UB,Finance,Public Sector Partnership Services,26/03/2024,30011028,"247,830.00 ",Public Sector Partnership Services LTD
Boston Borough Council,http://statistics.data.gov.uk/id/local-authority/32UB,Grant Payments,Non-Ringfenced Government Grants - RSG,26/03/2024,30011185,"754,216.00 ",Department for levelling Up Housing & Communities
Boston Borough Council,http://statistics.data.gov.uk/id/local-authority/32UB,Information Technology,Computer Software Licence Costs,26/03/2024,30010861,"34,400.00 ",Agile Applications LTD
Boston Borough Council,http://statistics.data.gov.uk/id/local-authority/32UB,Information Technology,Computer Software Licence Costs,26/03/2024,30011234,"27,995.00 ",East Lindsey District Council
Boston Borough Council,http://statistics.data.gov.uk/id/local-authority/32UB,Information Technology,Purchase of Hardware,26/03/2024,30010859,"14,244.30 ",Dell Incorporated
Boston Borough Council,http://statistics.data.gov.uk/id/local-authority/32UB,Land Charges & Licencing,Professional and Contractors Fees,26/03/2024,30011133,"1,317.47 ",Lincolnshire County Council
Boston Borough Council,http://statistics.data.gov.uk/id/local-authority/32UB,Leisure,Leisure Management,26/03/2024,30011290,"61,568.25 ",Parkwood Leisure Limited
Boston Borough Council,http://statistics.data.gov.uk/id/local-authority/32UB,Leisure,Leisure Management,26/03/2024,30011291,"61,568.25 ",Parkwood Leisure Limited
Boston Borough Council,http://statistics.data.gov.uk/id/local-authority/32UB,Leisure,Leisure Management,26/03/2024,30011292,"61,568.25 ",Parkwood Leisure Limited
Boston Borough Council,http://statistics.data.gov.uk/id/local-authority/32UB,Operations,Clothing Uniforms And Laundry,26/03/2024,30010436,672.80 ,SMI Group
Boston Borough Council,http://statistics.data.gov.uk/id/local-authority/32UB,Operations,Clothing Uniforms And Laundry,26/03/2024,30010498,871.00 ,SMI Group
Boston Borough Council,http://statistics.data.gov.uk/id/local-authority/32UB,Operations,Furniture and Equipment,26/03/2024,30010881,281.67 ,Portable offices (Hire) LTD
Boston Borough Council,http://statistics.data.gov.uk/id/local-authority/32UB,Operations,Maintenance,26/03/2024,30010533,250.00 ,Chris Sellars Groundcare LTD
Boston Borough Council,http://statistics.data.gov.uk/id/local-authority/32UB,Operations,Maintenance,26/03/2024,30010571,"1,672.35 ",Chris Sellars Groundcare LTD
Boston Borough Council,http://statistics.data.gov.uk/id/local-authority/32UB,Operations,Maintenance,26/03/2024,30010846,336.44 ,Specialist Fleet Services LTD
Boston Borough Council,http://statistics.data.gov.uk/id/local-authority/32UB,Operations,Maintenance,26/03/2024,30010847,314.67 ,Specialist Fleet Services LTD
Boston Borough Council,http://statistics.data.gov.uk/id/local-authority/32UB,Operations,Maintenance,26/03/2024,30010849,218.76 ,Specialist Fleet Services LTD
Boston Borough Council,http://statistics.data.gov.uk/id/local-authority/32UB,Operations,Maintenance,26/03/2024,30010852,247.38 ,Specialist Fleet Services LTD
Boston Borough Council,http://statistics.data.gov.uk/id/local-authority/32UB,Operations,Maintenance,26/03/2024,30010857,376.62 ,Specialist Fleet Services LTD
Boston Borough Council,http://statistics.data.gov.uk/id/local-authority/32UB,Operations,Maintenance,26/03/2024,30010865,"1,742.40 ",Chris Sellars Groundcare LTD
Boston Borough Council,http://statistics.data.gov.uk/id/local-authority/32UB,Operations,Maintenance,26/03/2024,30010943,360.63 ,Specialist Fleet Services LTD
Boston Borough Council,http://statistics.data.gov.uk/id/local-authority/32UB,Operations,Maintenance,26/03/2024,30010986,250.00 ,Chris Sellars Groundcare LTD
Boston Borough Council,http://statistics.data.gov.uk/id/local-authority/32UB,Operations,Maintenance,26/03/2024,30011053,"25,928.93 ",Specialist Fleet Services LTD
Boston Borough Council,http://statistics.data.gov.uk/id/local-authority/32UB,Operations,Vehicle Hire,26/03/2024,30010580,850.00 ,Phil Haines Coaches LTD
Boston Borough Council,http://statistics.data.gov.uk/id/local-authority/32UB,Operations,Vehicle Hire,26/03/2024,30010774,"4,620.00 ",SFS t/a Collett Transport Services
Boston Borough Council,http://statistics.data.gov.uk/id/local-authority/32UB,Operations,Vehicle Hire,26/03/2024,30010930,680.00 ,Phil Haines Coaches LTD
Boston Borough Council,http://statistics.data.gov.uk/id/local-authority/32UB,Operations,Vehicle Hire,26/03/2024,30010931,400.00 ,Phil Haines Coaches LTD
Boston Borough Council,http://statistics.data.gov.uk/id/local-authority/32UB,Operations,Vehicle Hire,26/03/2024,30010932,680.00 ,Phil Haines Coaches LTD
Boston Borough Council,http://statistics.data.gov.uk/id/local-authority/32UB,Operations,Vehicle Hire,26/03/2024,30010933,960.00 ,Phil Haines Coaches LTD
Boston Borough Council,http://statistics.data.gov.uk/id/local-authority/32UB,Operations,Vehicle Hire,26/03/2024,30010975,360.00 ,Euro Municipal LTD
Boston Borough Council,http://statistics.data.gov.uk/id/local-authority/32UB,Property Services,Agency Staff,26/03/2024,30010937,"1,202.51 ",Chase Services Group
Boston Borough Council,http://statistics.data.gov.uk/id/local-authority/32UB,Property Services,Agency Staff,26/03/2024,30010938,"7,937.98 ",Chase Services Group
Boston Borough Council,http://statistics.data.gov.uk/id/local-authority/32UB,Property Services,Buildings Maintenance - Programmed,26/03/2024,30010816,764.32 ,Dantherm LTD
Boston Borough Council,http://statistics.data.gov.uk/id/local-authority/32UB,Property Services,Buildings Maintenance - Programmed,26/03/2024,30010824,300.00 ,Integrated Water Services LTD
Boston Borough Council,http://statistics.data.gov.uk/id/local-authority/32UB,Property Services,Buildings Maintenance - Programmed,26/03/2024,30010829,300.00 ,Integrated Water Services LTD
Boston Borough Council,http://statistics.data.gov.uk/id/local-authority/32UB,Property Services,Buildings Maintenance - Programmed,26/03/2024,30010838,300.00 ,Integrated Water Services LTD
Boston Borough Council,http://statistics.data.gov.uk/id/local-authority/32UB,Property Services,Buildings Maintenance - Programmed,26/03/2024,30010841,300.00 ,Integrated Water Services LTD
Boston Borough Council,http://statistics.data.gov.uk/id/local-authority/32UB,Property Services,Buildings Maintenance - Programmed,26/03/2024,30010871,225.00 ,Integrated Water Services LTD
Boston Borough Council,http://statistics.data.gov.uk/id/local-authority/32UB,Property Services,Buildings Maintenance - Programmed,26/03/2024,30010970,436.00 ,ADT Fire And Security PLC
Boston Borough Council,http://statistics.data.gov.uk/id/local-authority/32UB,Property Services,Buildings Maintenance - Programmed,26/03/2024,30011012,"2,306.70 ",Pickerings Europe LTD
Boston Borough Council,http://statistics.data.gov.uk/id/local-authority/32UB,Property Services,Buildings Maintenance - Programmed,26/03/2024,30011077,431.02 ,Gelder Construction
Boston Borough Council,http://statistics.data.gov.uk/id/local-authority/32UB,Property Services,Buildings Maintenance - Programmed,26/03/2024,30011131,700.00 ,Eon UK Energy Services
Boston Borough Council,http://statistics.data.gov.uk/id/local-authority/32UB,Property Services,Materials and Consumables,26/03/2024,30011244,"1,250.00 ",Eon UK Energy Services
Boston Borough Council,http://statistics.data.gov.uk/id/local-authority/32UB,Property Services,Other Private Contractors,26/03/2024,30010961,"1,085.03 ",Kings Armoured Security Services LTD
Boston Borough Council,http://statistics.data.gov.uk/id/local-authority/32UB,Property Services,Professional and Contractors Fees,26/03/2024,30010868,"1,262.92 ",IPS (UK) Ltd
Boston Borough Council,http://statistics.data.gov.uk/id/local-authority/32UB,Property Services,Professional and Contractors Fees,26/03/2024,30010962,348.42 ,Chipside LTD
Boston Borough Council,http://statistics.data.gov.uk/id/local-authority/32UB,Strategic Growth & Development,Grants and Contributions to Outside Bodies - No Service Received,26/03/2024,30011124,"8,133.95 ",Lincolnshire Chamber of Commerce
Boston Borough Council,http://statistics.data.gov.uk/id/local-authority/32UB,Strategic Growth & Development,Grants and Contributions to Outside Bodies - No Service Received,26/03/2024,30011223,"9,035.20 ",Heritage Trust of Lincolnshire LTD
Boston Borough Council,http://statistics.data.gov.uk/id/local-authority/32UB,Strategic Growth & Development,Grants and Contributions to Outside Bodies - No Service Received,26/03/2024,30011293,"6,742.60 ",Lincolnshire Community Foundation
Boston Borough Council,http://statistics.data.gov.uk/id/local-authority/32UB,Strategic Growth & Development,Professional Fees,27/03/2024,30011463,360.00 ,Capsticks Solicitors LLP
Boston Borough Council,http://statistics.data.gov.uk/id/local-authority/32UB,Strategic Growth & Development,Purchase of Buildings,27/03/2024,30011463,"438,583.70 ",Capsticks Solicitors LLP
Boston Borough Council,http://statistics.data.gov.uk/id/local-authority/32UB,Business Transformation,Postages,28/03/2024,30011125,550.65 ,Royal Mail
Boston Borough Council,http://statistics.data.gov.uk/id/local-authority/32UB,Communities,Electricity,28/03/2024,30011004,"1,348.30 ",npower Business Solutions
Boston Borough Council,http://statistics.data.gov.uk/id/local-authority/32UB,Communities,Grants and Contributions to Outside Bodies - No Service Received,28/03/2024,30011246,"5,000.00 ",Citizens Advice Mid Lincolnshire
Boston Borough Council,http://statistics.data.gov.uk/id/local-authority/32UB,Communities,Other Miscellaneous Expenses,28/03/2024,30011341,327.00 ,A J Gillman Locksmith
Boston Borough Council,http://statistics.data.gov.uk/id/local-authority/32UB,Council Tax & Benefits,Professional and Contractors Fees,28/03/2024,30010977,"3,497.14 ",Datatank LTD
Boston Borough Council,http://statistics.data.gov.uk/id/local-authority/32UB,"Democratic, Civic & Electoral Services",Other Employee Expenses,28/03/2024,30011209,"4,567.50 ",Public Sector Partnership Services LTD
Boston Borough Council,http://statistics.data.gov.uk/id/local-authority/32UB,Economic Development,Professional and Contractors Fees,28/03/2024,30011284,"12,670.76 ",Brightsolo Ltd
Boston Borough Council,http://statistics.data.gov.uk/id/local-authority/32UB,Economic Development,Professional and Contractors Fees,28/03/2024,30011286,"43,779.84 ",Mr S M Lee (H Launchburys & Son)
Boston Borough Council,http://statistics.data.gov.uk/id/local-authority/32UB,Economic Development,Professional Fees,28/03/2024,30011113,"256,512.58 ",University of Lincoln
Boston Borough Council,http://statistics.data.gov.uk/id/local-authority/32UB,Economic Development,Works to Buildings (Main Contractor),28/03/2024,30011284,"10,465.88 ",Brightsolo Ltd
Boston Borough Council,http://statistics.data.gov.uk/id/local-authority/32UB,Economic Development,Works to Buildings (Main Contractor),28/03/2024,30011285,"25,472.13 ",John Ling & Son
Boston Borough Council,http://statistics.data.gov.uk/id/local-authority/32UB,Information Technology,Telephone and Mobiles,28/03/2024,30011141,"1,806.57 ",Kerv
Boston Borough Council,http://statistics.data.gov.uk/id/local-authority/32UB,Information Technology,Telephone and Mobiles,28/03/2024,30011142,240.00 ,Kerv
Boston Borough Council,http://statistics.data.gov.uk/id/local-authority/32UB,Information Technology,Telephone and Mobiles,28/03/2024,30011143,"1,813.64 ",Kerv
Boston Borough Council,http://statistics.data.gov.uk/id/local-authority/32UB,Legal Services,Subscriptions to Organisations and Other Bodies,28/03/2024,30011468,"1,188.27 ",Lexisnexis Butterworths
Boston Borough Council,http://statistics.data.gov.uk/id/local-authority/32UB,Leisure,Other Miscellaneous Expenses,28/03/2024,30010949,"3,008.09 ",Gala Tent LTD
Boston Borough Council,http://statistics.data.gov.uk/id/local-authority/32UB,Operations,Agency Staff,28/03/2024,30011245,"7,538.79 ",Comensura LTD
Boston Borough Council,http://statistics.data.gov.uk/id/local-authority/32UB,Operations,Other Miscellaneous Expenses,28/03/2024,30010952,"1,231.40 ",A and C Weber UK LTD
Boston Borough Council,http://statistics.data.gov.uk/id/local-authority/32UB,Operations,Other Private Contractors,28/03/2024,30011298,240.00 ,SG Services (Boston) LTD
Boston Borough Council,http://statistics.data.gov.uk/id/local-authority/32UB,Operations,Other Private Contractors,28/03/2024,30011299,240.00 ,SG Services (Boston) LTD
Boston Borough Council,http://statistics.data.gov.uk/id/local-authority/32UB,Property Services,Buildings Maintenance - Programmed,28/03/2024,30010978,372.00 ,GDUK Door Solutions Ltd
Boston Borough Council,http://statistics.data.gov.uk/id/local-authority/32UB,Property Services,Buildings Maintenance - Programmed,28/03/2024,30011022,240.00 ,Adcock Refrigeration and Air Conditioning LTD
Boston Borough Council,http://statistics.data.gov.uk/id/local-authority/32UB,Property Services,Buildings Maintenance - Programmed,28/03/2024,30011261,292.60 ,Princebuild LTD
Boston Borough Council,http://statistics.data.gov.uk/id/local-authority/32UB,Property Services,Buildings Maintenance - Programmed,28/03/2024,30011263,"1,136.95 ",Princebuild LTD
Boston Borough Council,http://statistics.data.gov.uk/id/local-authority/32UB,Property Services,Buildings Maintenance - Programmed,28/03/2024,30011277,725.00 ,Safe Control LTD
Boston Borough Council,http://statistics.data.gov.uk/id/local-authority/32UB,Property Services,Buildings Maintenance - Programmed,28/03/2024,30011373,320.95 ,Princebuild LTD
Boston Borough Council,http://statistics.data.gov.uk/id/local-authority/32UB,Property Services,Buildings Maintenance - Programmed,28/03/2024,30011389,848.40 ,Gelder Construction
Boston Borough Council,http://statistics.data.gov.uk/id/local-authority/32UB,Property Services,Buildings Maintenance - Programmed,28/03/2024,30011391,562.97 ,Gelder Construction
Boston Borough Council,http://statistics.data.gov.uk/id/local-authority/32UB,Property Services,Buildings Maintenance - Programmed,28/03/2024,30011393,550.97 ,Gelder Construction
Boston Borough Council,http://statistics.data.gov.uk/id/local-authority/32UB,Property Services,Buildings Maintenance - Programmed,28/03/2024,30011400,285.83 ,Princebuild LTD
